Workbook

Sheet 1 неделя
B2: ПРИМЕРНОЕ ДВУХНЕДЕЛЬНОЕ МЕНЮ ДЛЯ ОБУЧАЮЩИХСЯ В ОБЩЕОБРАЗОВАТЕЛЬНЫХ ОРГАНИЗАЦИЯХ С 1-4 КЛАССЫ
S3: ВЕСЕННИЙ СЕЗОН
A4: № рецептуры | B4: Наименование блюд | G4: Выход | H4: Белки, г | I4: Жиры, г | K4: Углеводы, г | M4: Калорийность, ккал | O4: Витамин B1, мг | P4: Витамин С, мг | R4: Витамин А, мг | T4: Витамин Е, мг | V4: Ca, мг | W4: P, мг | X4: Mg, мг | Y4: Fe, мг
B5: 1-ая неделя
B6: 1 день (ПОНЕДЕЛЬНИК) 1 питание
A7: 182/2015 Дели | B7: КАША МОЛОЧНАЯ (ПШЕННАЯ) | G7: 150 | H7: 6.4 | I7: 6.7 | K7: 35.6 | M7: 228.3 | O7: 0.2 | P7: 0.3 | R7: 0.0 | T7: 1.2 | V7: 80.1 | W7: 133.4 | X7: 37.8 | Y7: 1.2
A8: 349/2015, Дели | B8: КОМПОТ ИЗ СМЕСИ СУХОФРУКТОВ | G8: 200 | H8: 0 | I8: 0 | K8: 14.6 | M8: 58.1 | O8: 0 | P8: 0 | R8: 0 | T8: 0 | V8: 8.4 | W8: 0 | X8: 1.8 | Y8: 0.000
B9: ХЛЕБ ПШЕНИНИЧНЫЙ | G9: 40 | H9: 3.040 | I9: 0.320 | K9: 19.600 | M9: 94.6 | O9: 0.044 | P9: 0.000 | R9: 0.000 | T9: 0.440 | V9: 8.000 | W9: 26.000 | X9: 5.600 | Y9: 0.440
B10: 2 питание
A11: № 52 Сбор.рец. На прод-ию для обуч. Во всех образ.учреж-Дели 2015 | B11: САЛАТ ИЗ СВЕКЛЫ ОТВАРНОЙ | G11: 60 | H11: 0.855 | I11: 3.653 | K11: 11.580 | M11: 56 | O11: 0.011 | P11: 7.700 | T11: 0.641 | V11: 121.090 | W11: 84.582 | X11: 12.540 | Y11: 0.198
A12: № 280 Сбор.рец. На прод-ию для обуч. Во всех образ.учреж-Дели -2015 | B12: ФРИКАДЕЛЬКИ В СОУСЕ | G12: 55/50 | H12: 8.330 | I12: 7.743 | K12: 3.194 | M12: 175 | O12: 0.030 | P12: 0.650 | R12: 0.100 | T12: 1.256 | V12: 100.530 | W12: 110.071 | X12: 0.077 | Y12: 1.000
A13: № 303 Сбор.рец. На прод-ию для обуч. Во всех образ.учреж-Дели 2015 | B13: КАША ВЯЗКАЯ (ГРЕЧНЕВАЯ) | G13: 150 | H13: 6.662 | I13: 9.024 | K13: 34.000 | M13: 170 | O13: 0.292 | P13: - | T13: 0.518 | V13: 37.352 | W13: 170.553 | X13: 44.550 | Y13: 1.101
A14: № 376 Сбор.рец. На прод-ию для обуч. Во всех образ.учреж-Дели 2015 | B14: ЧАЙ С САХАРОМ | G14: 200/15 | H14: 0.53 | I14: - | K14: 9.470 | M14: 40 | O14: - | P14: 0.27 | R14: - | T14: - | V14: 13.600 | W14: 22.13 | X14: 11.73 | Y14: 0.100
B15: ХЛЕБ ПШЕНИНИЧНЫЙ | G15: 20 | H15: 1.520 | I15: 0.160 | K15: 9.800 | M15: 47.32 | O15: 0.022 | P15: - | R15: - | T15: 0.220 | V15: 4.000 | W15: 2.800 | X15: 13.000 | Y15: 0.220
B16: ХЛЕБ РЖАНОЙ (РЖАНО-ПШЕНИЧНЫЙ) | G16: 20 | H16: 1.000 | I16: 0.200 | K16: 9.000 | M16: 44 | O16: 0.014 | P16: - | R16: - | T16: 0.108 | V16: 2.760 | W16: 12.720 | X16: 3.000 | Y16: 0.372
B17: Итого: | H17: =SUM(H6:H16) -> 28.337 | I17: =SUM(I6:J16) -> 27.800 | K17: =SUM(K6:M16) -> 1060.204 | M17: =SUM(M6:N16) -> 913 | O17: =SUM(O6:O16) -> 0.613 | P17: =SUM(P6:Q16) -> 8.920 | R17: =SUM(R7:S16) -> 0.100 | T17: =SUM(T6:U16) -> 4.383 | V17: =SUM(V6:V16) -> 375.832 | W17: =SUM(W6:W16) -> 562.256 | X17: =SUM(X6:X16) -> 130.097 | Y17: =SUM(Y6:Y16) -> 4.631
B18: 2 день (ВТОРНИК) 1 питание
A19: №132 Сбор.рец. На прод-ию для обуч. Во всех образ.учреж-Дели 2012 | B19: КАПУСТА ТУШЕНАЯ | G19: 60 | H19: 1.500 | I19: 2.400 | K19: 5.800 | M19: 51.7 | O19: 0 | P19: 12.3 | R19: 0.2 | T19: 1.1 | V19: 37.8 | W19: 27.3 | X19: 13.8 | Y19: 0.7
A20: № 289 Сбор.рец. На прод-ию для обуч. Во всех образ.учреж-Дели 2015 | B20: РАГУ ИЗ ПТИЦЫ | G20: 50/150 | H20: 12.300 | I20: 17.660 | K20: 29.850 | M20: 313 | O20: 0.201 | P20: 8.076 | R20: 0.180 | T20: 2.100 | V20: 57.660 | W20: 201.911 | X20: 26.394 | Y20: 0.111
A21: № 382 Сбор.рец. На прод-ию для обуч. Во всех образ.учреж-Дели 2015 | B21: КАКАО С МОЛОКОМ | G21: 200 | H21: 3.780 | I21: 0.670 | K21: 26.000 | M21: 125 | O21: 0.020 | P21: 1.330 | T21: 0.012 | V21: 133.330 | W21: 111.110 | X21: 25.560 | Y21: 2.000
B22: ХЛЕБ ПШЕНИНИЧНЫЙ | G22: 20 | H22: 1.520 | I22: 0.160 | K22: 9.800 | M22: 47.32 | O22: 0.022 | P22: - | R22: - | T22: 0.220 | V22: 4.000 | W22: 2.800 | X22: 13.000 | Y22: 0.220
B23: ХЛЕБ РЖАНОЙ (РЖАНО-ПШЕНИЧНЫЙ) | G23: 20 | H23: 1.000 | I23: 0.200 | K23: 9.000 | M23: 44 | O23: 0.014 | P23: - | R23: - | T23: 0.108 | V23: 2.760 | W23: 12.720 | X23: 3.000 | Y23: 0.372
B24: 2 питание
A25: 98/2008Речь | B25: СУП КАРТОФЕЛЬНЫЙ С ГЕРКУЛЕСОМ НА МЯСО-КОСТНОМ БУЛЬОНЕ | G25: 250 | H25: 4.5 | I25: 2.6 | K25: 15.200 | M25: 103 | O25: 0.1 | P25: 4.5 | R25: 0.2 | T25: 0.5 | V25: 27.6 | W25: 30.2 | X25: 83.7 | Y25: 1.3
A26: № 376 Сбор.рец. На прод-ию для обуч. Во всех образ.учреж-Дели 2015 | B26: ЧАЙ С САХАРОМ | G26: 200/15 | H26: 0.53 | I26: - | K26: 9.470 | M26: 40 | O26: - | P26: 0.27 | R26: - | T26: - | V26: 13.600 | W26: 22.13 | X26: 11.73 | Y26: 0.100
B27: ХЛЕБ РЖАНОЙ (РЖАНО-ПШЕНИЧНЫЙ) | G27: 40 | H27: 2 | I27: 0.4 | K27: 18.000 | M27: 88 | O27: 0.028 | P27: 0 | R27: 0 | T27: 0.21 | V27: 5.520 | W27: 6 | X27: 25.44 | Y27: 0.744
B28: Итого: | H28: =SUM(H19:H27) -> 27.130 | I28: =SUM(I19:J27) -> 24.090 | K28: =SUM(K19:L27) -> 123.120 | M28: =SUM(M19:N23,M25,M26,M27) -> 812 | O28: =SUM(O19:O27) -> 0.385 | P28: =SUM(P19:Q27) -> 26.476 | R28: =SUM(R19:S27) -> 0.6 | T28: =SUM(T19:U27) -> 4.250 | V28: =SUM(V19:V27) -> 282.27 | W28: =SUM(W19:W27) -> 414.171 | X28: =SUM(X19:X27) -> 202.624 | Y28: =SUM(Y19:Y27) -> 5.547
B29: 3 день (СРЕДА) 1 питание
A30: 182/2015,Дели | B30: КАША РИСОВАЯ МОЛОЧНАЯ | G30: 150 | H30: 3.9 | I30: 5.8 | K30: 31.4 | M30: 193.9 | O30: 0 | P30: 0.3 | R30: 0 | T30: 0.3 | V30: 70.600 | W30: 90.2 | X30: 22.7 | Y30: 0.4
A31: № 376 Сбор.рец. На прод-ию для обуч. Во всех образ.учреж-Дели 2015 | B31: ЧАЙ С САХАРОМ | G31: 200/15 | H31: 0.53 | I31: - | K31: 9.470 | M31: 40 | O31: - | P31: 0.27 | R31: - | T31: - | V31: 13.600 | W31: 22.13 | X31: 11.73 | Y31: 0.100
B32: ХЛЕБ ПШЕНИНИЧНЫЙ | G32: 40 | H32: 3.040 | I32: 0.320 | K32: 19.600 | M32: 94.6 | O32: 0.044 | P32: 0.000 | R32: 0.000 | T32: 0.440 | V32: 8.000 | W32: 26.000 | X32: 5.600 | Y32: 0.440
B33: 2 питание
A34: № 35 Сбор.рец. На прод-ию для обуч. Во всех образ.учреж-Дели 2012 | B34: САЛАТ ИЗ СВЕКЛЫ С ЯБЛОКАМИ | G34: 60 | H34: 0.600 | I34: 2.900 | K34: 6.200 | M34: 54.8 | O34: 0.000 | P34: 2.000 | R34: - | T34: 1.500 | V34: 15.000 | W34: 16.900 | X34: 8.700 | Y34: 0.800
A35: № 256 Сбор.рец. На прод-ию для обуч. Во всех образ.учреж-Дели 2015 | B35: МЯСО ТУШЕНОЕ | G35: 50/50 | H35: 10.500 | I35: 11.030 | K35: 3.184 | M35: 196 | O35: 0.140 | P35: 3.890 | T35: 0.363 | V35: 66.806 | W35: 215.174 | X35: 30.164 | Y35: 1.430
A36: № 203 Сбор.рец. На прод-ию для обуч. Во всех образ.учреж-Дели 2015 | B36: МАКАРОННЫЕ ИЗДЕЛИЯ ОТВАРНЫЕ С МАСЛОМ | G36: 150/5 | H36: 5.100 | I36: 4.468 | K36: 28.500 | M36: 187 | O36: 0.087 | P36: - | R36: 0.100 | T36: 0.816 | V36: 16.457 | W36: 57.009 | X36: 8.479 | Y36: 0.869
A37: № 379 Сбор.рец. На прод-ию для обуч. Во всех образ.учреж-Дели 2015 | B37: КОФЕЙНЫЙ НАПИТОК С МОЛОКОМ | G37: 200 | H37: 3.600 | I37: 2.670 | K37: 29.200 | M37: 155 | O37: 0.030 | P37: 1.470 | V37: 158.670 | W37: 132.000 | X37: 29.330 | Y37: 2.400
B38: ХЛЕБ ПШЕНИНИЧНЫЙ | G38: 20 | H38: 1.520 | I38: 0.160 | K38: 9.800 | M38: 47.32 | O38: 0.022 | P38: - | R38: - | T38: 0.220 | V38: 4.000 | W38: 2.800 | X38: 13.000 | Y38: 0.220
B39: ХЛЕБ РЖАНОЙ (РЖАНО-ПШЕНИЧНЫЙ) | G39: 20 | H39: 1.000 | I39: 0.200 | K39: 9.000 | M39: 44 | O39: 0.014 | P39: - | R39: - | T39: 0.108 | V39: 2.760 | W39: 12.720 | X39: 3.000 | Y39: 0.372
B40: Итого: | H40: =SUM(H30:H39) -> 29.790 | I40: =SUM(I30:J39) -> 27.548 | K40: =SUM(K30:M39) -> 1159.214 | M40: =SUM(M30:N39) -> 1013 | O40: =SUM(O30:O39) -> 0.337 | P40: =SUM(P30:Q39) -> 7.93 | R40: =SUM(R30:S39) -> 0.100 | T40: =SUM(T30:U39) -> 3.75 | V40: =SUM(V30:V39) -> 355.893 | W40: =SUM(W30:W39) -> 574.93 | X40: =SUM(X30:X39) -> 132.703 | Y40: =SUM(Y30:Y39) -> 7.031
B41: 4 день (ЧЕТВЕРГ) 1 питание
A42: 181/2015,Дели | B42: КАША МАННАЯ МОЛОЧНАЯ | G42: 150 | H42: 5.100 | I42: 6.075 | K42: 30.800 | M42: 197.55 | O42: 0 | P42: 0.3 | R42: 0 | T42: 0.9 | V42: 78.6 | W42: 73.1 | X42: 13.4 | Y42: 0.37
A43: 349/2015, Дели | B43: КОМПОТ ИЗ СМЕСИ СУХОФРУКТОВ | G43: 200 | H43: 0 | I43: 0 | K43: 14.6 | M43: 58.1 | O43: 0 | P43: 0 | R43: 0 | T43: 0 | V43: 8.4 | W43: 0 | X43: 1.8 | Y43: 0.000
B44: ХЛЕБ ПШЕНИНИЧНЫЙ | G44: 40 | H44: 3.040 | I44: 0.320 | K44: 19.600 | M44: 94.6 | O44: 0.044 | P44: 0.000 | R44: 0.000 | T44: 0.440 | V44: 8.000 | W44: 26.000 | X44: 5.600 | Y44: 0.440
B45: 2 питание
A46: №132 Сбор.рец. На прод-ию для обуч. Во всех образ.учреж-Дели 2012 | B46: КАПУСТА ТУШЕНАЯ | G46: 60 | H46: 1.500 | I46: 2.400 | K46: 5.800 | M46: 51.7 | O46: 0 | P46: 12.3 | R46: 0.2 | T46: 1.1 | V46: 37.8 | W46: 27.3 | X46: 13.8 | Y46: 0.7
A47: № 295 Сбор.рец. На прод-ию для обуч. Во всех образ.учреж-Дели 2015 | B47: КОТЛЕТЫ РУБЛЕННЫЕ ИЗ БРОЙЛЕР-ЦЫПЛЯТ | G47: 90 | H47: 11.520 | I47: 6.040 | K47: 21.780 | N47: 178.8 | O47: 0.090 | P47: 0.000 | T47: - | V47: 100.600 | W47: 177.75 | X47: 0.720 | Y47: 0.338
A48: № 312 Сбор.рец. На прод-ию для обуч. Во всех образ.учреж-Дели -2015 | B48: ПЮРЕ КАРТОФЕЛЬНОЕ | G48: 150 | H48: 3.090 | I48: 8.282 | K48: 22 | M48: 172 | O48: 0.164 | P48: 7.943 | R48: 0.080 | T48: 3.000 | V48: 47.805 | W48: 98.835 | X48: 8.000 | Y48: 0.000
A49: № 376 Сбор.рец. На прод-ию для обуч. Во всех образ.учреж-Дели 2015 | B49: ЧАЙ С САХАРОМ | G49: 200/15 | H49: 0.53 | I49: - | K49: 9.470 | M49: 40 | O49: - | P49: 0.27 | R49: - | T49: - | V49: 13.600 | W49: 22.13 | X49: 11.73 | Y49: 0.100
B50: ХЛЕБ ПШЕНИНИЧНЫЙ | G50: 20 | H50: 1.520 | I50: 0.160 | K50: 9.800 | M50: 47.32 | O50: 0.022 | P50: - | R50: - | T50: 0.220 | V50: 4.000 | W50: 2.800 | X50: 13.000 | Y50: 0.220
B51: ХЛЕБ РЖАНОЙ (РЖАНО-ПШЕНИЧНЫЙ) | G51: 20 | H51: 1.000 | I51: 0.200 | K51: 9.000 | M51: 44 | O51: 0.014 | P51: - | R51: - | T51: 0.108 | V51: 2.760 | W51: 12.720 | X51: 3.000 | Y51: 0.372
B52: Итого: | H52: =SUM(H42:H51) -> 27.300 | I52: =SUM(I42:J51) -> 23.477 | K52: =SUM(K42:L51) -> 142.917 | M52: =SUM(M42,M43,M44,M46,N47,M48,M49,M50,M51) -> 884 | O52: =SUM(O42:O51) -> 0.33 | P52: =SUM(P42,P43,P44,P46,P46,P47,P48,P49,P50:Q51) -> 33.113 | R52: =SUM(R42:S51) -> 0.3 | T52: =SUM(T42,T43,T44,T46,T47,T48,T49,T50,T51) -> 5.768 | V52: =SUM(V42:V51) -> 301.565 | W52: =SUM(W42,W43,W44,W46,W47,W48,W49,W50,W51) -> 440.635 | X52: =SUM(X42,X43,X44,X46,X47,X48,X49,X50,X51) -> 71.050 | Y52: =SUM(Y42,Y43,Y44,Y46,Y47,Y48,Y49,Y50,Y51) -> 2.540
B53: 5 день (ПЯТНИЦА) 1 питание
A54: № 52 Сбор.рец. На прод-ию для обуч. Во всех образ.учреж-Дели 2015 | B54: САЛАТ ИЗ СВЕКЛЫ ОТВАРНОЙ | G54: 60 | H54: 0.855 | I54: 3.653 | K54: 11.580 | M54: 56 | O54: 0.011 | P54: 7.700 | T54: 0.641 | V54: 121.090 | W54: 84.582 | X54: 12.540 | Y54: 0.198
A55: № 268 Сбор.рец. На прод-ию для обуч. Во всех образ.учреж-Дели 2015 | B55: КОТЛЕТЫ | G55: 90 | H55: 13.670 | I55: 13.671 | K55: 8.700 | M55: 209.6 | O55: 0.061 | P55: 0.787 | R55: - | T55: 1.476 | V55: 14.360 | W55: 138.560 | X55: 17.561 | Y55: 2.045
A56: № 304 Сбор.рец. На прод-ию для обуч. Во всех образ.учреж-Дели 2015 | B56: РИС ОТВАРНОЙ | G56: 150 | H56: 3.8 | I56: 8.6 | K56: 38.9 | M56: 247.0 | O56: 0.0 | P56: 0.0 | R56: 0.1 | T56: 0.4 | V56: 9.9 | W56: 75.4 | X56: 24.6 | Y56: 0.5
A57: № 376 Сбор.рец. На прод-ию для обуч. Во всех образ.учреж-Дели 2015 | B57: ЧАЙ С САХАРОМ | G57: 200/15 | H57: 0.53 | I57: - | K57: 9.470 | M57: 40 | O57: - | P57: 0.27 | R57: - | T57: - | V57: 13.600 | W57: 22.13 | X57: 11.73 | Y57: 0.100
B58: ХЛЕБ ПШЕНИНИЧНЫЙ | G58: 20 | H58: 1.520 | I58: 0.160 | K58: 9.800 | M58: 47.32 | O58: 0.022 | P58: - | R58: - | T58: 0.220 | V58: 4.000 | W58: 2.800 | X58: 13.000 | Y58: 0.220
B59: ХЛЕБ РЖАНОЙ (РЖАНО-ПШЕНИЧНЫЙ) | G59: 20 | H59: 1.000 | I59: 0.200 | K59: 9.000 | M59: 44 | O59: 0.014 | P59: - | R59: - | T59: 0.108 | V59: 2.760 | W59: 12.720 | X59: 3.000 | Y59: 0.372
B60: 2 питание
A61: 67/2015,Дели | B61: ЩИ ИЗ СВЕЖЕЙ КАПУСТЫ С КАРТОФЕЛЕМ НА МЯСО-КОСТНОМ БУЛЬОНЕ | G61: 250 | H61: 4.3 | I61: 2.1 | K61: 11.8 | M61: 84.8 | O61: 0.1 | P61: 14 | R61: 0.2 | T61: 0.2 | V61: 46.4 | W61: 70.2 | X61: 27 | Y61: 1.4
A62: № 376 Сбор.рец. На прод-ию для обуч. Во всех образ.учреж-Дели 2015 | B62: ЧАЙ С САХАРОМ | G62: 200/15 | H62: 0.53 | I62: - | K62: 9.470 | M62: 40 | O62: - | P62: 0.27 | R62: - | T62: - | V62: 13.600 | W62: 22.13 | X62: 11.73 | Y62: 0.100
B63: ХЛЕБ РЖАНОЙ (РЖАНО-ПШЕНИЧНЫЙ) | G63: 40 | H63: 2 | I63: 0.4 | K63: 18.000 | M63: 88 | O63: 0.028 | P63: 0 | R63: 0 | T63: 0.21 | V63: 5.520 | W63: 6 | X63: 25.44 | Y63: 0.744
B64: Итого: | H64: =SUM(H54:H63) -> 28.205 | I64: =SUM(I54:J63) -> 28.784 | K64: =SUM(K54:L63) -> 126.720 | M64: =SUM(M54:N63) -> 857 | O64: =SUM(O54:O63) -> 0.2 | P64: =SUM(P54:Q63) -> 23.027 | R64: =SUM(R54:S63) -> 0.300 | T64: =SUM(T54:U63) -> 3.255 | V64: =SUM(V54:V63) -> 231.230 | W64: =SUM(W54:W63) -> 434.522 | X64: =SUM(X54:X63) -> 146.60 | Y64: =SUM(Y54:Z63) -> 5.679
B65: 6 день (СУББОТА) Завтрак
A66: 189/2008Речь | B66: КАША ПШЕНИЧНАЯ | G66: 150 | H66: 5.1 | I66: 6.0 | K66: 27.5 | M66: 184 | O66: 0.1 | P66: 0.3 | R66: 0.0 | T66: 0.1 | V66: 82.3 | W66: 23.9 | X66: 117.8 | Y66: 1.3
A67: № 376 Сбор.рец. На прод-ию для обуч. Во всех образ.учреж-Дели 2015 | B67: ЧАЙ С САХАРОМ | G67: 200/15 | H67: 0.53 | I67: - | K67: 9.470 | M67: 40 | O67: - | P67: 0.27 | R67: - | T67: - | V67: 13.600 | W67: 22.13 | X67: 11.73 | Y67: 0.100
B68: ХЛЕБ ПШЕНИНИЧНЫЙ | G68: 40 | H68: 3.040 | I68: 0.320 | K68: 19.600 | M68: 94.6 | O68: 0.044 | P68: 0.000 | R68: 0.000 | T68: 0.440 | V68: 8.000 | W68: 26.000 | X68: 5.600 | Y68: 0.440
B69: 2 Завтрак
A70: № 47 Сбор.рец. На прод-ию для обуч. Во всех образ.учреж-Дели 2015 | B70: САЛАТ ИЗ КВАШЕНОЙ КАПУСТЫ | G70: 60 | H70: 2.600 | I70: 5.058 | K70: 4.944 | M70: 56 | O70: 0.013 | P70: 5.180 | R70: - | T70: 1.381 | V70: 25.278 | W70: 18.606 | X70: 8.616 | Y70: 0.010
A71: № 392 Сбор.рец. На прод-ию для обуч. Во всех образ.учреж-Дели 2015 | B71: ПЕЛЬМЕНИ МЯСНЫЕ ОТВАРНЫЕ | G71: 165/3 | H71: 9.000 | I71: 10.200 | K71: 18.150 | M71: 213 | O71: 0.136 | P71: 0.443 | R71: 0.160 | T71: 1.06 | V71: 72.70 | W71: 218.6 | X71: 9.44 | Y71: 0.07
A72: № 377 Сбор.рец. На прод-ию для обуч. Во всех образ.учреж-Дели 2015 | B72: ЧАЙ С ЛИМОНОМ | G72: 200/15/7 | H72: 0.084 | I72: 0.012 | K72: 15.185 | M72: 62 | O72: 0.003 | P72: 2.8 | T72: 0.014 | V72: 3.250 | W72: 1.54 | X72: 0.84 | Y72: 0.087
B73: ХЛЕБ ПШЕНИНИЧНЫЙ | G73: 30 | H73: 2.280 | I73: 0.240 | K73: 14.760 | M73: 71 | O73: 0.033 | P73: - | R73: - | T73: 0.330 | V73: 6.000 | W73: 19.500 | X73: 4.200 | Y73: 0.330
B74: ХЛЕБ РЖАНОЙ (РЖАНО-ПШЕНИЧНЫЙ) | G74: 20 | H74: 1.000 | I74: 0.200 | K74: 9.000 | M74: 44 | O74: 0.014 | P74: - | R74: - | T74: 0.108 | V74: 2.760 | W74: 12.720 | X74: 3.000 | Y74: 0.372
B75: Итого: | H75: =SUM(H66:H68,H70,H71,H72,H73,H74) -> 23.63 | I75: =SUM(I66:J68,I70,I71,I72,I73,I74) -> 22.03 | K75: =SUM(K66:L68,K70,K71,K72,K73,K74) -> 118.61 | M75: =SUM(M66:N68,M70,M71,M72,M73,M74) -> 765.24 | O75: =SUM(O66:O68,O70,O71,O72,O73,O74) -> 0.34 | P75: =SUM(P66:Q68,P70,P71,P72) -> 8.99 | R75: =SUM(R66:S68,R71) -> 0.16 | T75: =SUM(T66,T68,T70,T71,T72,T73,T74) -> 3.43 | V75: =SUM(V66,V67,V68,V70,V71,V72,V74,V73) -> 213.89 | W75: =SUM(W66,W67,W68,W70,W71,W72,W73,W74) -> 343.00 | X75: =SUM(X66,X67,X68,X70,X71,X72,X73,X74) -> 161.23 | Y75: =SUM(Y66,Y67,Y68,Y70,Y71,Y72,Y73,Y74) -> 2.71

Sheet 2 неделя
B1: ПРИМЕРНОЕ ДВУХНЕДЕЛЬНОЕ МЕНЮ ДЛЯ ОБУЧАЮЩИХСЯ В ОБЩЕОБРАЗОВАТЕЛЬНЫХ ОРГАНИЗАЦИЯХ С 1-4 КЛАССЫ
B2: ВЕСЕННИЙ СЕЗОН
A3: № РЕЦЕПТУР | B3: Наименование блюд | G3: Выход | H3: Белки, г | I3: Жиры, г | K3: Углеводы, г | M3: Калорийность, ккал | O3: Витамин B1, мг | P3: Витамин С, мг | R3: Витамин А, мг | T3: Витамин Е, мг | V3: Ca, мг | W3: P, мг | X3: Mg, мг | Y3: Fe, мг
B4: 2-ая неделя
B5: 1 день (ПОНЕДЕЛЬНИК) 1 питание
A6: 181/2015,Дели | B6: КАША МАННАЯ МОЛОЧНАЯ | G6: 150 | H6: 5.100 | I6: 6.075 | K6: 30.800 | M6: 197.55 | O6: 0 | P6: 0.3 | R6: 0 | T6: 0.9 | V6: 78.6 | W6: 73.1 | X6: 13.4 | Y6: 0.37 | AI6: 2 ВАРИАНТ (НОЯБРЬ, ДЕКАБРЬ)
A7: 349/2015, Дели | B7: КОМПОТ ИЗ СМЕСИ СУХОФРУКТОВ | G7: 200 | H7: 0 | I7: 0 | K7: 14.6 | M7: 58.1 | O7: 0 | P7: 0 | R7: 0 | T7: 0 | V7: 8.4 | W7: 0 | X7: 1.8 | Y7: 0.000
B8: ХЛЕБ ПШЕНИНИЧНЫЙ | G8: 40 | H8: 3.040 | I8: 0.320 | K8: 19.600 | M8: 94.6 | O8: 0.044 | P8: 0.000 | R8: 0.000 | T8: 0.440 | V8: 8.000 | W8: 26.000 | X8: 5.600 | Y8: 0.440
B9: 2 питание
A10: №132 Сбор.рец. На прод-ию для обуч. Во всех образ.учреж-Дели 2012 | B10: КАПУСТА ТУШЕНАЯ | G10: 60 | H10: 1.500 | I10: 2.400 | K10: 5.800 | M10: 51.7 | O10: 0 | P10: 12.3 | R10: 0.2 | T10: 1.1 | V10: 37.8 | W10: 27.3 | X10: 13.8 | Y10: 0.7 | AI10: 2 ВАРИАНТ (НОЯБРЬ, ДЕКАБРЬ)
A11: № 280 Сбор.рец. На прод-ию для обуч. Во всех образ.учреж-Дели -2015 | B11: ФРИКАДЕЛЬКИ В СОУСЕ | G11: 55/50 | H11: 8.330 | I11: 7.743 | K11: 3.194 | M11: 175 | O11: 0.030 | P11: 0.650 | R11: 0.100 | T11: 1.256 | V11: 100.530 | W11: 110.071 | X11: 0.077 | Y11: 1.000
A12: № 302 Сбор.рец. На прод-ию для обуч. Во всех образ.учреж-Дели 2015 | B12: КАША ПОЛБЯНАЯ ВЯЗКАЯ | G12: 150 | H12: 3.500 | I12: 3.030 | K12: 26.200 | M12: 144 | O12: 0.130 | P12: 0 | R12: 21.000 | T12: 0.311 | V12: 15.201 | W12: 132.223 | X12: 44.258 | Y12: 1.475
A13: № 376 Сбор.рец. На прод-ию для обуч. Во всех образ.учреж-Дели 2015 | B13: ЧАЙ С САХАРОМ | G13: 200/15 | H13: 0.53 | I13: - | K13: 9.470 | M13: 40 | O13: - | P13: 0.27 | R13: - | T13: - | V13: 13.600 | W13: 22.13 | X13: 11.73 | Y13: 0.100
B14: ХЛЕБ ПШЕНИНИЧНЫЙ | G14: 20 | H14: 1.520 | I14: 0.160 | K14: 9.800 | M14: 47.32 | O14: 0.022 | P14: - | R14: - | T14: 0.220 | V14: 4.000 | W14: 2.800 | X14: 13.000 | Y14: 0.220
B15: ХЛЕБ РЖАНОЙ (РЖАНО-ПШЕНИЧНЫЙ) | G15: 20 | H15: 1.000 | I15: 0.200 | K15: 9.000 | M15: 44 | O15: 0.014 | P15: - | R15: - | T15: 0.108 | V15: 2.760 | W15: 12.720 | X15: 3.000 | Y15: 0.372
B16: Итого: | H16: =SUM(H6:H15) -> 24.520 | I16: =SUM(I6:J15) -> 19.928 | K16: =SUM(K6:L8,K10,K11,K12,K13,K14,K15) -> 128.464 | M16: =SUM(M6:N8,M10:N15) -> 852 | O16: =SUM(O6:O15) -> 0.24 | P16: =SUM(P6:Q15) -> 13.520 | R16: =SUM(R6:S15) -> 21.3 | T16: =SUM(T6:U15) -> 4.335 | V16: =SUM(V6:V15) -> 268.891 | W16: =SUM(W6:W15) -> 406.344 | X16: =SUM(X6:X15) -> 106.7 | Y16: =SUM(Y6:Y15) -> 4.68
B17: 2 день (ВТОРНИК) 1 питание
A18: 182/2015 Дели | B18: КАША ЯЧНЕВАЯ | G18: 150 | H18: 5.470 | I18: 6.220 | K18: 31.720 | M18: 204 | O18: 0.075 | P18: 0.300 | R18: 0.075 | T18: 0.150 | V18: 97.500 | W18: 162.450 | X18: 24.400 | Y18: 0.750
A19: № 376 Сбор.рец. На прод-ию для обуч. Во всех образ.учреж-Дели 2015 | B19: ЧАЙ С САХАРОМ | G19: 200/15 | H19: 0.53 | I19: - | K19: 9.470 | M19: 40 | O19: - | P19: 0.27 | R19: - | T19: - | V19: 13.600 | W19: 22.13 | X19: 11.73 | Y19: 0.100
B20: ХЛЕБ ПШЕНИНИЧНЫЙ | G20: 40 | H20: 3.040 | I20: 0.320 | K20: 19.600 | M20: 94.6 | O20: 0.044 | P20: 0.000 | R20: 0.000 | T20: 0.440 | V20: 8.000 | W20: 26.000 | X20: 5.600 | Y20: 0.440
B21: 2 питание
A22: № 52 Сбор.рец. На прод-ию для обуч. Во всех образ.учреж-Дели 2015 | B22: САЛАТ ИЗ СВЕКЛЫ ОТВАРНОЙ | G22: 60 | H22: 0.855 | I22: 3.653 | K22: 11.580 | M22: 56 | O22: 0.011 | P22: 7.700 | T22: 0.641 | V22: 121.090 | W22: 84.582 | X22: 12.540 | Y22: 0.198
A23: № 291 Сбор.рец. На прод-ию для обуч. Во всех образ.учреж-Дели -2015 | B23: ПЛОВ ИЗ ПТИЦЫ | G23: 50/150 | H23: 14.510 | I23: 14.710 | K23: 28.340 | M23: 364 | O23: 0.210 | P23: 4.900 | R23: 0.100 | T23: 1.200 | V23: 83.070 | W23: 273.000 | X23: 40.450 | Y23: 1.900
A24: № 377 Сбор.рец. На прод-ию для обуч. Во всех образ.учреж-Дели 2015 | B24: ЧАЙ С ЛИМОНОМ | G24: 200/15/7 | H24: 0.084 | I24: 0.012 | K24: 15.185 | M24: 62 | O24: 0.003 | P24: 2.8 | T24: 0.014 | V24: 3.250 | W24: 1.54 | X24: 0.84 | Y24: 0.087
B25: ХЛЕБ ПШЕНИНИЧНЫЙ | G25: 20 | H25: 1.520 | I25: 0.160 | K25: 9.800 | M25: 47.32 | O25: 0.022 | P25: - | R25: - | T25: 0.220 | V25: 4.000 | W25: 2.800 | X25: 13.000 | Y25: 0.220
B26: ХЛЕБ РЖАНОЙ (РЖАНО-ПШЕНИЧНЫЙ) | G26: 20 | H26: 1.000 | I26: 0.200 | K26: 9.000 | M26: 44 | O26: 0.014 | P26: - | R26: - | T26: 0.108 | V26: 2.760 | W26: 12.720 | X26: 3.000 | Y26: 0.372
B27: Итого: | H27: =SUM(H18:H26) -> 27.009 | I27: =SUM(I18:J26) -> 25.275 | K27: =SUM(K18:L20,K22,K23,K24,K25,K26) -> 134.70 | M27: =SUM(M18,M19,M20,M22,M23,M24,M25,M26) -> 912 | O27: =SUM(O18,O19,O20,O22,O23,O24,O25,O26) -> 0.38 | P27: =SUM(P18,P19,P20,P22,P23,P24) -> 16.0 | R27: =SUM(R18,R20,R23) -> 0.175 | T27: =SUM(T18,T20,T22,T23,T24,T25,T26) -> 2.773 | V27: =SUM(V18,V19,V20,V22,V23,V24,V25,V26) -> 333.27 | W27: =SUM(W18,W19,W20,W22,W23,W24,W25,W26) -> 585.22 | X27: =SUM(X18,X19,X20,X22,X23,X24,X25,X26) -> 111.56 | Y27: =SUM(Y18,Y19,Y20,Y22,Y23,Y24,Y25,Y26) -> 4.067
B28: 3 день (СРЕДА) 1 питание
A29: № 47 Сбор.рец. На прод-ию для обуч. Во всех образ.учреж-Дели 2015 | B29: САЛАТ ИЗ КВАШЕНОЙ КАПУСТЫ | G29: 60 | H29: 2.600 | I29: 5.058 | K29: 4.944 | M29: 56 | O29: 0.013 | P29: 5.180 | R29: - | T29: 1.381 | V29: 25.278 | W29: 18.606 | X29: 8.616 | Y29: 0.010
A30: № 234 Сбор.рец. На прод-ию для обуч. Во всех образ.учреж-Дели -2015 | B30: БИТОЧКИ РЫБНЫЕ | G30: 90 | H30: 7.250 | I30: 4.770 | K30: 8.42 | M30: 130.5 | O30: 0.056 | P30: 0.540 | R30: 0.113 | T30: 0.726 | V30: 49.522 | W30: 154.193 | X30: 13.500 | Y30: 0.000
A31: № 312 Сбор.рец. На прод-ию для обуч. Во всех образ.учреж-Дели -2015 | B31: ПЮРЕ КАРТОФЕЛЬНОЕ | G31: 150 | H31: 3.090 | I31: 8.282 | K31: 22 | M31: 172 | O31: 0.164 | P31: 7.943 | R31: 0.080 | T31: 3.000 | V31: 47.805 | W31: 98.835 | X31: 8.000 | Y31: 0.000
A32: № 376 Сбор.рец. На прод-ию для обуч. Во всех образ.учреж-Дели 2015 | B32: ЧАЙ С САХАРОМ | G32: 200/15 | H32: 0.53 | I32: - | K32: 9.470 | M32: 40 | O32: - | P32: 0.27 | R32: - | T32: - | V32: 13.600 | W32: 22.13 | X32: 11.73 | Y32: 0.100
B33: ХЛЕБ ПШЕНИНИЧНЫЙ | G33: 20 | H33: 1.520 | I33: 0.160 | K33: 9.800 | M33: 47.32 | O33: 0.022 | P33: - | R33: - | T33: 0.220 | V33: 4.000 | W33: 2.800 | X33: 13.000 | Y33: 0.220
B34: ХЛЕБ РЖАНОЙ (РЖАНО-ПШЕНИЧНЫЙ) | G34: 20 | H34: 1.000 | I34: 0.200 | K34: 9.000 | M34: 44 | O34: 0.014 | P34: - | R34: - | T34: 0.108 | V34: 2.760 | W34: 12.720 | X34: 3.000 | Y34: 0.372
B35: 2 питание
A36: 2012, Дели | B36: БОРЩ С КАПУСТОЙ И КАРТОФЕЛЕМ НА МЯСО-КОСТНОМ БУЛЬОНЕ | G36: 250 | H36: 4.300 | I36: 2.000 | K36: 13.300 | M36: 91 | O36: 0.100 | P36: 12.2 | R36: 0.2 | T36: 0.200 | V36: 50.200 | W36: 30.200 | X36: 75.900 | Y36: 1.800
A37: 349/2015, Дели | B37: КОМПОТ ИЗ СМЕСИ СУХОФРУКТОВ | G37: 200 | H37: 0 | I37: 0 | K37: 14.6 | M37: 58.1 | O37: 0 | P37: 0 | R37: 0 | T37: 0 | V37: 8.4 | W37: 0 | X37: 1.8 | Y37: 0.000
B38: ХЛЕБ РЖАНОЙ (РЖАНО-ПШЕНИЧНЫЙ) | G38: 40 | H38: 2 | I38: 0.4 | K38: 18.000 | M38: 88 | O38: 0.028 | P38: 0 | R38: 0 | T38: 0.21 | V38: 5.520 | W38: 6 | X38: 25.44 | Y38: 0.744
B39: Итого: | H39: =SUM(H29:H38) -> 22.290 | I39: =SUM(I29:J38) -> 20.870 | K39: =SUM(K29:M38) -> 836.421 | M39: =SUM(N29:N38) -> 0 | O39: =SUM(O29:O38) -> 0.397 | P39: =SUM(P29:Q38) -> 26.133 | R39: =SUM(R29:S38) -> 0.393 | T39: =SUM(T29:U38) -> 5.845 | V39: =SUM(V29:V38) -> 207.085 | W39: =SUM(W29:W38) -> 345.484 | X39: =SUM(X29:X38) -> 160.986 | Y39: =SUM(Y29:Y38) -> 3.246
B40: 4 день (ЧЕТВЕРГ) 1 питание
A41: 182/2015 Дели | B41: КАША МОЛОЧНАЯ (ПШЕННАЯ) | G41: 150 | H41: 6.4 | I41: 6.7 | K41: 35.6 | M41: 228.3 | O41: 0.2 | P41: 0.3 | R41: 0.0 | T41: 1.2 | V41: 80.1 | W41: 133.4 | X41: 37.8 | Y41: 1.2
A42: № 376 Сбор.рец. На прод-ию для обуч. Во всех образ.учреж-Дели 2015 | B42: ЧАЙ С САХАРОМ | G42: 200/15 | H42: 0.53 | I42: - | K42: 9.470 | M42: 40 | O42: - | P42: 0.27 | R42: - | T42: - | V42: 13.600 | W42: 22.13 | X42: 11.73 | Y42: 0.100
B43: ХЛЕБ ПШЕНИНИЧНЫЙ | G43: 40 | H43: 3.040 | I43: 0.320 | K43: 19.600 | M43: 94.6 | O43: 0.044 | P43: 0.000 | R43: 0.000 | T43: 0.440 | V43: 8.000 | W43: 26.000 | X43: 5.600 | Y43: 0.440
B44: 2 питание
A45: № 35 Сбор.рец. На прод-ию для обуч. Во всех образ.учреж-Дели 2012 | B45: САЛАТ ИЗ СВЕКЛЫ С ЯБЛОКАМИ | G45: 60 | H45: 0.600 | I45: 2.900 | K45: 6.200 | M45: 54.8 | O45: 0.000 | P45: 2.000 | R45: - | T45: 1.500 | V45: 15.000 | W45: 16.900 | X45: 8.700 | Y45: 0.800 | AI45: 2 ВАРИАНТ (НОЯБРЬ, ДЕКАБРЬ)
A46: № 392 Сбор.рец. На прод-ию для обуч. Во всех образ.учреж-Дели 2015 | B46: ПЕЛЬМЕНИ МЯСНЫЕ ОТВАРНЫЕ | G46: 165/3 | H46: 9.000 | I46: 10.200 | K46: 18.150 | M46: 213 | O46: 0.136 | P46: 0.443 | R46: 0.160 | T46: 1.06 | V46: 72.70 | W46: 218.6 | X46: 9.44 | Y46: 0.07
A47: № 377 Сбор.рец. На прод-ию для обуч. Во всех образ.учреж-Дели 2015 | B47: ЧАЙ С ЛИМОНОМ | G47: 200/15/7 | H47: 0.084 | I47: 0.012 | K47: 15.185 | M47: 62 | O47: 0.003 | P47: 2.8 | T47: 0.014 | V47: 3.250 | W47: 1.54 | X47: 0.84 | Y47: 0.087
B48: ХЛЕБ ПШЕНИНИЧНЫЙ | G48: 30 | H48: 2.280 | I48: 0.240 | K48: 14.760 | M48: 71 | O48: 0.033 | P48: - | R48: - | T48: 0.330 | V48: 6.000 | W48: 19.500 | X48: 4.200 | Y48: 0.330
B49: ХЛЕБ РЖАНОЙ (РЖАНО-ПШЕНИЧНЫЙ) | G49: 20 | H49: 1.000 | I49: 0.200 | K49: 9.000 | M49: 44 | O49: 0.014 | P49: - | R49: - | T49: 0.108 | V49: 2.760 | W49: 12.720 | X49: 3.000 | Y49: 0.372
B50: Итого: | H50: =SUM(H41:H49) -> 22.93 | I50: =SUM(I41:J49) -> 20.572 | K50: =SUM(K41:M49) -> 936.01 | M50: =SUM(M41:N49) -> 808 | O50: =SUM(O41:O49) -> 0.430 | P50: =SUM(P41:Q49) -> 5.813 | R50: =SUM(R41:S49) -> 0.160 | T50: =SUM(T41:U49) -> 4.652 | V50: =SUM(V41:V49) -> 201.410 | W50: =SUM(W41:W49) -> 450.790 | X50: =SUM(X41:X49) -> 81.310 | Y50: =SUM(Y41:Y49) -> 3
B51: 5 день (ПЯТНИЦА) Завтрак
A52: 189/2008Речь | B52: КАША ПШЕНИЧНАЯ | G52: 150 | H52: 5.1 | I52: 6.0 | K52: 27.5 | M52: 184 | O52: 0.1 | P52: 0.3 | R52: 0.0 | T52: 0.1 | V52: 82.3 | W52: 23.9 | X52: 117.8 | Y52: 1.3
A53: № 376 Сбор.рец. На прод-ию для обуч. Во всех образ.учреж-Дели 2015 | B53: ЧАЙ С САХАРОМ | G53: 200/15 | H53: 0.53 | I53: - | K53: 9.470 | M53: 40 | O53: - | P53: 0.27 | R53: - | T53: - | V53: 13.600 | W53: 22.13 | X53: 11.73 | Y53: 0.100
B54: ХЛЕБ ПШЕНИНИЧНЫЙ | G54: 40 | H54: 3.040 | I54: 0.320 | K54: 19.600 | M54: 94.6 | O54: 0.044 | P54: 0.000 | R54: 0.000 | T54: 0.440 | V54: 8.000 | W54: 26.000 | X54: 5.600 | Y54: 0.440
B55: 2 питание
A56: №132 Сбор.рец. На прод-ию для обуч. Во всех образ.учреж-Дели 2012 | B56: КАПУСТА ТУШЕНАЯ | G56: 60 | H56: 1.500 | I56: 2.400 | K56: 5.800 | M56: 51.7 | O56: 0 | P56: 12.3 | R56: 0.2 | T56: 1.1 | V56: 37.8 | W56: 27.3 | X56: 13.8 | Y56: 0.7 | AI56: 2 ВАРИАНТ (НОЯБРЬ, ДЕКАБРЬ)
A57: № 290 Сбор.рец. На прод-ию для обуч. Во всех образ.учреж-Дели 2015 | B57: ПТИЦА ТУШЕННАЯ В СОУСЕ | G57: 50/50 | H57: 11.65 | I57: 10.75 | K57: 11.6 | M57: 164.0 | O57: 0.168 | P57: 6.326 | T57: 0.956 | V57: 85.2 | W57: 163.198 | X57: 15.716 | Y57: 1.8
A58: № 303 Сбор.рец. На прод-ию для обуч. Во всех образ.учреж-Дели 2015 | B58: КАША ВЯЗКАЯ (ГРЕЧНЕВАЯ) | G58: 150 | H58: 6.662 | I58: 9.024 | K58: 34.000 | M58: 170 | O58: 0.292 | P58: - | T58: 0.518 | V58: 37.352 | W58: 170.553 | X58: 44.550 | Y58: 1.101
A59: № 378 Сбор.рец. На прод-ию для обуч. Во всех образ.учреж-Дели 2015 | B59: ЧАЙ С МОЛОКОМ | G59: 200 | H59: 1.52 | I59: 1.35 | K59: 15.9 | M59: 81.0 | O59: 0.04 | P59: 1.33 | R59: 0.16 | T59: 0 | V59: 136.6 | W59: 92.8 | X59: 5.4 | Y59: 0.110
B60: ХЛЕБ ПШЕНИНИЧНЫЙ | G60: 20 | H60: 1.520 | I60: 0.160 | K60: 9.800 | M60: 47.32 | O60: 0.022 | P60: - | R60: - | T60: 0.220 | V60: 4.000 | W60: 2.800 | X60: 13.000 | Y60: 0.220
B61: ХЛЕБ РЖАНОЙ (РЖАНО-ПШЕНИЧНЫЙ) | G61: 20 | H61: 1.000 | I61: 0.200 | K61: 9.000 | M61: 44 | O61: 0.014 | P61: - | R61: - | T61: 0.108 | V61: 2.760 | W61: 12.720 | X61: 3.000 | Y61: 0.372
B62: Итого: | H62: =SUM(H52:H61) -> 32.522 | I62: =SUM(I52:J61) -> 30.204 | K62: =SUM(K52:M61) -> 1019.66 | M62: =SUM(M52:N61) -> 877 | O62: =SUM(O52:O61) -> 0.68 | P62: =SUM(P52:Q61) -> 20.526 | R62: =SUM(R52:S61) -> 0.360 | T62: =SUM(T52:U61) -> 3.442 | V62: =SUM(V52:V61) -> 407.597 | W62: =SUM(W52:W61) -> 541.40 | X62: =SUM(X52:X61) -> 230.596 | Y62: =SUM(Y52:Y61) -> 6.143
B63: 6 день (СУББОТА) 1 питание
A64: № 52 Сбор.рец. На прод-ию для обуч. Во всех образ.учреж-Дели 2015 | B64: САЛАТ ИЗ СВЕКЛЫ ОТВАРНОЙ | G64: 60 | H64: 0.855 | I64: 3.653 | K64: 11.580 | M64: 56 | O64: 0.011 | P64: 7.700 | T64: 0.641 | V64: 121.090 | W64: 84.582 | X64: 12.540 | Y64: 0.198 | AI64: 2 ВАРИАНТ (НОЯБРЬ, ДЕКАБРЬ)
A65: № 268 Сбор.рец. На прод-ию для обуч. Во всех образ.учреж-Дели 2015 | B65: КОТЛЕТЫ | G65: 90 | H65: 13.670 | I65: 13.671 | K65: 8.700 | M65: 209.6 | O65: 0.061 | P65: 0.787 | R65: - | T65: 1.476 | V65: 14.360 | W65: 138.560 | X65: 17.561 | Y65: 2.045
A66: № 203 Сбор.рец. На прод-ию для обуч. Во всех образ.учреж-Дели 2015 | B66: МАКАРОННЫЕ ИЗДЕЛИЯ ОТВАРНЫЕ С МАСЛОМ | G66: 150/5 | H66: 5.100 | I66: 4.468 | K66: 28.500 | M66: 187 | O66: 0.087 | P66: - | R66: 0.100 | T66: 0.816 | V66: 16.457 | W66: 57.009 | X66: 8.479 | Y66: 0.869
A67: № 376 Сбор.рец. На прод-ию для обуч. Во всех образ.учреж-Дели 2015 | B67: ЧАЙ С САХАРОМ | G67: 200/15 | H67: 0.53 | I67: - | K67: 9.470 | M67: 40 | O67: - | P67: 0.27 | R67: - | T67: - | V67: 13.600 | W67: 22.13 | X67: 11.73 | Y67: 0.100
B68: ХЛЕБ ПШЕНИНИЧНЫЙ | G68: 20 | H68: 1.520 | I68: 0.160 | K68: 9.800 | M68: 47.32 | O68: 0.022 | P68: - | R68: - | T68: 0.220 | V68: 4.000 | W68: 2.800 | X68: 13.000 | Y68: 0.220
B69: ХЛЕБ РЖАНОЙ (РЖАНО-ПШЕНИЧНЫЙ) | G69: 20 | H69: 1.000 | I69: 0.200 | K69: 9.000 | M69: 44 | O69: 0.014 | P69: - | R69: - | T69: 0.108 | V69: 2.760 | W69: 12.720 | X69: 3.000 | Y69: 0.372
B70: 2 Завтрак
A71: 99/2015,Дели | B71: СУП ГОРОХОВЫЙ НА МЯСО-КОСТНОМ БУЛЬОНЕ | G71: 250 | H71: 7.8 | I71: 2.3 | K71: 18.5 | M71: 126.9 | O71: 0.3 | P71: 4.5 | R71: 0.2 | T71: 2.0 | V71: 48.7 | W71: 35.0 | X71: 96.7 | Y71: 2.3
A72: № 376 Сбор.рец. На прод-ию для обуч. Во всех образ.учреж-Дели 2015 | B72: ЧАЙ С САХАРОМ | G72: 200/15 | H72: 0.53 | I72: - | K72: 9.470 | M72: 40 | O72: - | P72: 0.27 | R72: - | T72: - | V72: 13.600 | W72: 22.13 | X72: 11.73 | Y72: 0.100
B73: ХЛЕБ РЖАНОЙ (РЖАНО-ПШЕНИЧНЫЙ) | G73: 40 | H73: 2 | I73: 0.4 | K73: 18.000 | M73: 88 | O73: 0.028 | P73: 0 | R73: 0 | T73: 0.21 | V73: 5.520 | W73: 6 | X73: 25.44 | Y73: 0.744
B74: Итого: | H74: =SUM(H64:H69,H71,H72,H73) -> 33.005 | I74: =SUM(I64:J69,I71,I73) -> 24.852 | K74: =SUM(K64:L69,K71,K72,K73) -> 123.020 | M74: =SUM(M64:N69,M71,M72,M73) -> 839 | O74: =SUM(O64:O69,O71,O72,O73) -> 0.523 | P74: =SUM(P64:Q69,P71,P72,P73) -> 13.53 | R74: =SUM(R64:S69,R71,R73) -> 0.300 | T74: =SUM(T64:U69,T71:U73) -> 5.471 | V74: =SUM(V64:V69,V71:V73) -> 240.087 | W74: =SUM(W64:W69,W71:W73) -> 380.93 | X74: =SUM(X64:X69,X71:X73) -> 200.180 | Y74: =SUM(Y64:Y69,Y71:Y73) -> 6.9
